{"text_format":"2","workbook":"xlsx","n_sheets":5,"sheets":["Registration Form","Website Form","Map","Sheet3","Sheet1"],"not_rendered":{"charts":1,"images":4,"macros":0,"external_links":1,"defined_names":6,"comments":0,"pivot_tables":0},"unopened":[],"bounds":{"document_bytes":16777216,"sheet_cells":100000,"run_cost":"one","rows_first":2000,"rows_last":500,"rows_between":2000,"halvings":0,"cell_chars":16384,"cell_head_chars":4096},"cells_cut":0,"cells_raw":0,"read":"whole","date_system":"1900"}

{"sheet":"Registration Form","index":0,"n_rows":46,"n_cols":15,"rows_kept":46,"cut":false,"hidden":false,"merged":[[1,1,1,5],[36,2,36,3],[33,2,33,5],[4,1,4,3],[3,1,3,3],[5,1,5,2],[2,1,2,2]]}
[]
[null,"Northern California Senior Softball Association"]
[null,"Team Zip Code: NCSSA Calculated",null,"            NCSSA",{"$nulls":10},"APPROVED"]
[null,"Age Group",{"$nulls":10},"2026 Official Roster"]
[null,"enter age group here",null,null,"enter team name here",{"$nulls":9},"PAID"]
[null,"Manager",null,null,"Assistant Manager","Revision",{"$nulls":8},"Revision"]
[null,null,null,"< Name >",null,"A"]
[null,null,null,"< Phone >"]
[null,null,null,"< Phone >"]
[null,null,null,"< Email >",null,null,null,"NCSSA Use Only"]
[null,null,"Last Name, First Name","Birth Yr","Address, City, State","Zip Code",null,"Age","Year =",2026]
[null,1,{"$nulls":5},{"$f":"$J$11-D12","v":2026}]
[null,2,{"$nulls":5},2026]
[null,3,{"$nulls":5},2026]
[null,4,{"$nulls":5},2026]
[null,5,{"$nulls":5},2026]
[null,6,{"$nulls":5},2026]
[null,7,{"$nulls":5},2026]
[null,8,{"$nulls":5},2026]
[null,9,{"$nulls":5},2026]
[null,10,{"$nulls":5},2026]
[null,11,{"$nulls":5},2026]
[null,12,{"$nulls":5},2026]
[null,13,{"$nulls":5},2026]
[null,14,{"$nulls":5},2026]
[null,15,{"$nulls":5},2026]
[null,16,{"$nulls":5},2026]
[null,17,{"$nulls":5},2026]
[null,18,{"$nulls":5},2026]
[null,19,{"$nulls":5},2026]
[null,20,{"$nulls":5},2026]
[null,21,{"$nulls":5},2026]
[null,22,{"$nulls":5},2026]
[null,null,"Tournament  Use Only                  "]
[null,"Add"]
[null,"Add"]
[null,null,"RECENT ADDITIONS",null,"BOLD NAME - Player on 2 Rosters"]
[null,"NCSSA Use Only"]
[{"$nulls":7},"Average Age"]
[{"$nulls":7},{"$f":"AVERAGEIF(H12:H33,\"<110\")","v":{"$error":"#DIV/0!"}}]
[]
[]
[]
[]
[null,null,"Removed Players"]
[null,null,"Last / First Name","Birth YR","Address - City - State","Zip Code","Date"]

{"sheet":"Website Form","index":1,"n_rows":48,"n_cols":5,"rows_kept":48,"cut":false,"hidden":true,"merged":[[5,1,5,2],[6,1,6,2],[4,1,4,2],[0,1,0,4],[2,1,2,4],[3,1,3,2]]}
[null,"Northern California Senior Softball Association"]
[]
[null,"2026 Official Roster"]
[null,{"$f":"'Registration Form'!B3","v":"Team Zip Code: NCSSA Calculated"},null,null,"APPROVED"]
[null,{"$f":"'Registration Form'!E5","v":"enter team name here"},null,{"$f":"'Registration Form'!B5","v":"enter age group here"},{"$f":"'Registration Form'!F4","v":"00:00:00"}]
[null,{"$f":"'Registration Form'!C7","v":0},null,{"$f":"'Registration Form'!C8","v":0},{"$f":"'Registration Form'!C10","v":0}]
[null,{"$f":"'Registration Form'!E7","v":0},null,{"$f":"'Registration Form'!E8","v":0},{"$f":"'Registration Form'!E10","v":0}]
{"$rows_empty":35}
[null,null,"RECENT ADDITIONS","BOLD NAME - Player on 2 Rosters"]
[]
[null,"Write-In Temporary Players"]
[null,null,"Name","Birth Year","Zip Code"]
[null,"Add"]
[null,"Add"]

{"sheet":"Map","index":2,"n_rows":28,"n_cols":3,"rows_kept":28,"cut":false,"hidden":true,"merged":[]}
[]
[]
[null,"Zip Codes","Level"]
["North- Yuba City",95901,1000]
["South- Turlock",95380,1000]
["East- Jackson",95642,1000]
["West- Petaluma",94952,1000]
[null,{"$f":"'Registration Form'!F12","v":0},25]
[null,{"$f":"'Registration Form'!F13","v":0},25]
[null,{"$f":"'Registration Form'!F14","v":0},25]
[null,{"$f":"'Registration Form'!F15","v":0},25]
[null,{"$f":"'Registration Form'!F16","v":0},25]
[null,{"$f":"'Registration Form'!F17","v":0},25]
[null,{"$f":"'Registration Form'!F18","v":0},25]
[null,{"$f":"'Registration Form'!F19","v":0},25]
[null,{"$f":"'Registration Form'!F20","v":0},25]
[null,{"$f":"'Registration Form'!F21","v":0},25]
[null,{"$f":"'Registration Form'!F22","v":0},25]
[null,{"$f":"'Registration Form'!F23","v":0},25]
[null,{"$f":"'Registration Form'!F24","v":0},25]
[null,{"$f":"'Registration Form'!F25","v":0},25]
[null,{"$f":"'Registration Form'!F26","v":0},25]
[null,{"$f":"'Registration Form'!F27","v":0},25]
[null,{"$f":"'Registration Form'!F28","v":0},25]
[null,{"$f":"'Registration Form'!F29","v":0},25]
[null,{"$f":"'Registration Form'!F30","v":0},25]
[null,{"$f":"'Registration Form'!F31","v":0},25]
[null,{"$f":"'Registration Form'!F32","v":0},25]

{"sheet":"Sheet3","index":3,"n_rows":0,"n_cols":0,"rows_kept":0,"cut":false,"hidden":true,"merged":[]}

{"sheet":"Sheet1","index":4,"n_rows":0,"n_cols":0,"rows_kept":0,"cut":false,"hidden":true,"merged":[]}